bitfinex-derivatives/quotes_SOLF0:USTF0_20241010
["timestamp","ask_amount","ask_price","bid_price","bid_amount"]
[1728536054685,15.82,140.12,140.09,0.12502]
[1728536054888,19.3915,140.12,140.09,3.69712]
[1728536055186,15.82,140.12,140.09,0.12502]
[1728536055381,4.84,140.12,140.1,10.98]
[1728536056285,4.84,140.12,140.11,3.5716]
[1728536059792,10.98,140.13,140.11,3.5716]
[1728536069198,19.391,140.14,140.11,3.5716]
[1728536098537,4.84,140.14,140.12,3.5712]
[1728536098722,15.82,140.14,140.12,3.5712]
[1728536100733,10.98,140.13,140.11,3.5715]
[1728536100945,10.98,140.13,140.09,13.86262]
[1728536101836,4.84,140.14,140.11,3.5716]
[1728536102129,15.82,140.14,140.1,10.98]
[1728536102335,4.84,140.14,140.12,3.5713]
[1728536106134,19.3907,140.15,140.12,3.5713]
[1728536110342,45.01138804,140.16,140.12,10.98]
[1728536110549,45.01138804,140.16,140.13,10.98]
[1728536110756,45.01138804,140.16,140.14,10.98]
[1728536110757,49.85138804,140.16,140.14,10.98]
[1728536111433,49.85138804,140.16,140.15,3.5706]
[1728536111744,45.01138804,140.16,140.15,3.5706]
[1728536120044,4.84,140.18,140.15,3.5706]
[1728536120349,4.84,140.18,140.15,14.5506]
[1728536121242,14.5496,140.19,140.15,14.5506]
[1728536121549,4.84,140.18,140.15,14.5506]
[1728536122547,4.84,140.18,140.14,10.98]
[1728536122742,10.98,140.17,140.12,10.98]
[1728536122941,10.98,140.16,140.11,10.98]
[1728536123802,3.5706,140.15,140.12,3.5712]
[1728536123972,3.5706,140.15,140.11,10.98]
[1728536124377,19.3904,140.16,140.13,3.5711]
[1728536126143,3.5707,140.15,140.12,3.5713]
[1728536129250,3.5707,140.15,140.12,14.5513]
[1728536132357,3.5707,140.15,140.12,3.5713]
[1728536132555,14.5507,140.15,140.12,3.5713]
[1728536132953,3.5714,140.12,140.09,5.12612]
[1728536133152,3.5714,140.12,140.09,3.69712]
[1728536133958,19.3912,140.13,140.1,3.5718]
[1728536141852,8.4112,140.13,140.1,3.5718]
[1728536146150,3.5715,140.12,140.09,14.67692]
[1728536146355,15.82,140.13,140.09,11.10502]
[1728536146654,4.84,140.13,140.09,11.10502]
[1728536146857,8.4112,140.13,140.1,3.5717]
[1728536156861,8.4112,140.13,140.09,3.69712]
[1728536156862,14.5515,140.12,140.09,3.69712]
[1728536157067,10.98,140.11,140.09,0.12502]
[1728536158461,14.5518,140.11,140.09,0.12502]
[1728536161485,10.98,140.11,140.09,0.12502]
[1728536161662,19.3919,140.1,140.09,0.12502]
[1728536162562,22.93964525,140.1,140.09,0.12502]
[1728536163066,11.95964525,140.1,140.09,0.12502]
[1728536163321,22.93964525,140.1,140.09,0.12502]
[1728536165564,19.3919,140.1,140.09,0.12502]
[1728536181279,15.82,140.1,139.92,3.31973521]
[1728536181477,10.98,140.0,139.98,1.4154]
[1728536182180,10.98,140.0,139.98,4.9901]
[1728536183478,4.84,140.01,139.98,4.9901]
[1728536185480,14.5538,140.03,140.0,3.5744]
[1728536185786,4.84,140.03,140.02,10.98]
[1728536186678,4.84,140.03,140.02,14.5537]
[1728536187277,4.84,140.03,140.02,3.5737]
[1728536188281,15.82,140.04,140.02,3.5737]
[1728536189287,19.3935,140.04,140.01,3.5741]
[1728536189584,10.98,140.03,139.98,12.3954]
[1728536189783,10.98,140.03,140.0,3.5742]
[1728536192478,14.5537,140.03,140.0,3.5742]
[1728536204597,3.5739,140.02,139.99,3.5746]
[1728536205085,10.98,140.03,139.98,1.4154]
[1728536205285,14.5538,140.03,140.0,3.5744]
[1728536207500,4.84,140.02,140.0,3.5744]
[1728536207899,4.84,140.02,140.0,3.5742]
[1728536208500,4.84,140.02,140.0,3.5744]
[1728536209322,10.98,140.03,139.79,0.12502]
[1728536209323,21.45,140.01,139.79,0.12502]
[1728536209497,21.45,139.99,139.84,10.98]
[1728536209694,3.5758,139.95,139.87,10.98]
[1728536209906,17.18,139.94,139.87,10.98]
[1728536210100,17.18,139.94,139.88,2.6995]
[1728536210300,6.2,139.94,139.88,4.1478]
[1728536210692,14.5564,139.93,139.88,4.1478]
[1728536210998,8.85055678,139.9,139.88,4.1478]
[1728536211195,32.68267383,139.89,139.88,4.1478]
[1728536211395,23.83211705,139.89,139.88,4.1478]
[1728536211597,23.83211705,139.89,139.88,2.6995]
[1728536211996,11.10502,139.91,139.88,2.6995]
[1728536212200,6.94293051,139.9,139.88,2.6995]
[1728536212501,11.10502,139.91,139.88,2.6995]
[1728536212502,0.12502,139.91,139.88,2.6995]
[1728536212701,7.06248765,139.91,139.88,2.6995]
[1728536213008,0.12502,139.91,139.88,2.6995]
[1728536217502,10.98,139.9,139.88,2.6995]
[1728536220407,0.12502,139.91,139.89,3.5771]
[1728536220604,11.10502,139.91,139.88,2.6995]
[1728536221825,10.98,139.9,139.88,2.6995]
[1728536226100,3.70182,139.91,139.88,2.6995]
[1728536226306,14.68182,139.91,139.88,2.6995]
[1728536231215,14.68182,139.91,139.87,3.5777]
[1728536231768,10.98,139.9,139.87,3.5777]
[1728536231904,14.557,139.9,139.87,3.5777]
[1728536235625,14.68182,139.91,139.86,3.5778]
[1728536235830,14.68182,139.91,139.86,10.98]
[1728536236318,14.68182,139.91,139.88,3.5773]
[1728536236621,11.10502,139.91,139.87,10.98]
[1728536237221,10.98,139.9,139.87,3.5776]
[1728536238242,0.12502,139.91,139.87,10.98]
[1728536238420,0.12502,139.91,139.88,3.5774]
[1728536239419,3.70172,139.91,139.88,3.5774]
[1728536240622,10.98,139.9,139.88,3.5774]
[1728536244919,0.12502,139.91,139.9,3.577]
[1728536246822,0.12502,139.91,139.89,3.5771]
[1728536247024,0.12502,139.91,139.87,10.98]
[1728536247527,3.70172,139.91,139.88,3.5773]
[1728536250427,3.70172,139.91,139.87,10.98]
[1728536250626,3.70172,139.91,139.88,3.5775]
[1728536251024,0.12502,139.91,139.88,3.5775]
[1728536251728,0.12502,139.91,139.89,3.5772]
[1728536267440,11.10502,139.91,139.89,3.5772]
[1728536270038,0.12502,139.91,139.89,3.5772]
[1728536305577,0.12502,139.91,139.88,10.98]
[1728536305778,0.12502,139.91,139.9,3.577]
[1728536320491,0.12502,139.91,139.89,2.7362]
[1728536321186,0.12502,139.91,139.9,3.577]
[1728536342409,0.12502,139.91,139.89,2.7362]
[1728536342714,0.12502,139.91,139.89,6.3134]
[1728536345416,0.12502,139.91,139.89,17.2934]
[1728536345717,0.12502,139.91,139.89,13.7162]
[1728536345916,0.12502,139.91,139.9,3.577]
[1728536348218,0.12502,139.91,139.89,2.7362]
[1728536348411,0.12502,139.91,139.89,13.7162]
[1728536349110,0.12502,139.91,139.9,3.577]
[1728536365034,0.12502,139.91,139.9,14.557]
[1728536375631,11.10502,139.91,139.84,1.393]
[1728536375829,10.98,139.9,139.86,3.5778]
[1728536376036,10.98,139.9,139.84,1.393]
[1728536376037,10.98,139.89,139.84,1.393]
[1728536376335,10.98,139.89,139.84,17.633]
[1728536376940,14.5574,139.89,139.86,3.578]
[1728536378139,3.5776,139.88,139.85,3.5782]
[1728536378343,14.5576,139.88,139.85,3.5782]
[1728536386058,10.98,139.88,139.83,16.24]
[1728536386239,3.5779,139.87,139.84,3.5785]
[1728536387149,10.98,139.88,139.84,3.5785]
[1728536387353,14.5576,139.88,139.84,3.5785]
[1728536389152,14.5576,139.88,139.83,16.24]
[1728536389455,14.5576,139.88,139.85,3.5782]
[1728536390953,3.5779,139.87,139.84,3.5784]
[1728536391253,10.98,139.86,139.84,3.5784]
[1728536392880,14.5579,139.87,139.84,3.5784]
[1728536393450,14.5579,139.87,139.82,18.8863]
[1728536394055,14.5579,139.87,139.84,3.5783]
[1728536394659,10.98,139.87,139.84,3.5783]
[1728536397454,14.5578,139.87,139.84,3.5783]
[1728536400462,5.16,139.9,139.82,7.9063]
[1728536400661,8.7372,139.9,139.85,10.98]
[1728536400856,10.98,139.89,139.82,2.7463]
[1728536401074,10.98,139.88,139.83,16.14]
[1728536401365,10.98,139.88,139.85,3.5781]
[1728536401662,10.98,139.87,139.82,13.7263]
[1728536401961,14.5579,139.87,139.84,3.5785]
[1728536402163,5.16,139.9,139.83,10.98]
[1728536402372,10.98,139.88,139.83,10.98]
[1728536402601,14.5575,139.88,139.85,3.5781]
[1728536403156,10.98,139.87,139.85,3.5781]
[1728536420800,5.16,139.9,139.84,10.98]
[1728536420998,5.16,139.9,139.87,3.5777]
[1728536421198,10.98,139.89,139.87,3.5777]
[1728536421908,10.98,139.89,139.85,10.98]
[1728536422207,14.5573,139.89,139.86,3.5778]
[1728536423207,0.12502,139.91,139.85,10.98]
[1728536423414,0.12502,139.91,139.86,10.98]
[1728536423589,0.12502,139.91,139.89,10.98]
[1728536423817,0.12502,139.91,139.9,3.577]
[1728536435200,0.12502,139.91,139.89,3.5772]
[1728536438392,0.12502,139.91,139.89,10.98]
[1728536438595,0.12502,139.91,139.9,3.577]
[1728536444199,0.12502,139.91,139.88,5.1]
[1728536444695,0.12502,139.91,139.88,16.08]
[1728536445501,0.12502,139.91,139.9,3.577]
[1728536449608,0.12502,139.91,139.9,14.557]
[1728536453804,0.12502,139.91,139.9,3.577]
[1728536460812,0.12502,139.91,139.9,14.557]
[1728536464706,10.98,139.94,139.9,10.98]
[1728536464905,10.98,139.94,139.88,5.1]
[1728536464906,10.98,139.95,139.93,3.5761]
[1728536465514,78.42849197,139.96,139.93,3.5761]
[1728536465717,74.85299197,139.96,139.94,3.5758]
[1728536466515,0.12502,139.97,139.94,10.98]
[1728536466717,0.12502,139.97,139.96,10.98]
[1728536467016,0.12502,139.97,139.96,14.5554]
[1728536472219,3.5742,140.01,139.98,3.5748]
[1728536472418,10.98,140.02,139.98,14.5548]
[1728536472619,14.5539,140.02,139.98,14.5548]
[1728536472809,14.5539,140.02,139.99,3.5746]
[1728536474925,3.5739,140.02,139.99,3.5746]
[1728536475127,10.98,140.02,139.99,3.5746]
[1728536476826,3.69872,140.03,139.99,10.98]
[1728536477027,3.69872,140.03,140.0,3.5744]
[1728536479533,14.5541,140.02,139.99,5.04]
[1728536480129,10.98,140.02,139.98,3.5747]
[1728536480427,10.98,139.99,139.98,5.04]
[1728536481144,10.98,140.0,139.98,5.04]
[1728536482439,10.98,140.0,139.98,8.6149]
[1728536485541,3.5743,140.01,139.98,8.6149]
[1728536488553,14.554,140.02,139.98,8.6149]
[1728536488739,14.554,140.02,139.98,5.04]
[1728536488939,14.554,140.02,139.99,3.5747]
[1728536489143,3.574,140.02,139.99,3.5747]
[1728536490248,86.26140676,140.03,139.98,16.02]
[1728536490441,89.83530676,140.03,140.0,3.5744]
[1728536490642,78.85530676,140.03,140.0,3.5744]
[1728536496247,10.98,140.02,140.0,3.5744]
[1728536500765,10.98,140.01,139.99,3.5746]
[1728536500962,10.98,140.0,139.96,4.98]
[1728536501451,14.5546,140.0,139.96,4.98]
[1728536501961,10.98,140.0,139.97,3.5749]
[1728536502163,14.5542,140.01,139.96,15.96]
[1728536503059,14.5542,140.01,139.98,3.5749]
[1728536507355,10.98,140.01,139.94,67.31919238]
[1728536507559,14.5554,139.97,139.94,67.31919238]
[1728536507763,10.98,139.97,139.94,67.31919238]
[1728536507964,10.98,139.96,139.94,67.31919238]
[1728536509454,14.5555,139.96,139.94,67.31919238]
[1728536509962,10.98,139.96,139.92,2.8095]
[1728536510334,10.98,139.96,139.92,11.3659]
[1728536510964,14.5556,139.96,139.92,11.3659]
[1728536511664,4.98,140.0,139.93,3.576]
[1728536511665,14.5552,139.97,139.93,3.576]
[1728536512958,10.98,139.96,139.93,3.576]
[1728536513159,14.5554,139.96,139.93,3.576]
[1728536514164,14.5557,139.95,139.92,3.5764]
[1728536514565,14.5557,139.95,139.91,5.12502]
[1728536514771,14.5557,139.95,139.91,8.70162]
[1728536516164,14.5557,139.95,139.92,3.5765]
[1728536516563,14.5557,139.95,139.91,0.12502]
[1728536517063,14.5557,139.95,139.91,3.70162]
[1728536519764,14.5557,139.95,139.91,14.68162]
[1728536520568,8.62874528,139.97,139.92,10.98]
[1728536520846,8.62874528,139.97,139.93,3.5761]
[1728536520966,19.60874528,139.97,139.93,3.5761]
[1728536522264,5.0,139.97,139.94,10.98]
[1728536522568,10.98,139.97,139.94,10.98]
[1728536522782,14.5553,139.97,139.93,3.576]
[1728536523589,3.5756,139.96,139.93,3.576]
[1728536528672,14.5553,139.97,139.93,3.576]
[1728536531484,18.08938617,139.97,139.93,3.576]
[1728536531775,14.5553,139.97,139.93,3.576]
[1728536533280,14.5553,139.97,139.94,3.5759]
[1728536533479,14.5548,139.99,139.94,10.98]
[1728536533777,10.98,139.99,139.94,10.98]
[1728536534180,10.98,139.98,139.93,15.98]
[1728536534386,14.5549,139.98,139.95,3.5755]
[1728536537790,3.5749,139.98,139.95,3.5755]
[1728536539587,14.5548,139.99,139.96,3.5754]
[1728536539980,14.5546,140.0,139.97,3.575]
[1728536540183,10.98,140.01,139.97,10.98]
[1728536540589,14.5541,140.02,139.99,3.5746]
[1728536540784,10.98,140.02,139.97,10.98]
[1728536541088,10.98,140.02,139.98,10.98]
[1728536541981,14.5541,140.02,139.99,3.5746]
[1728536542283,14.5541,140.02,139.97,10.98]
[1728536543189,14.5541,140.02,139.98,3.5747]
[1728536544686,14.5541,140.02,139.97,10.98]
[1728536544882,14.5541,140.02,139.99,3.5745]
[1728536553803,0.12502,140.03,140.01,10.98]
[1728536554892,0.12502,140.03,140.02,3.5739]
[1728536555088,0.12502,140.03,140.01,10.98]
[1728536556491,0.12502,140.03,140.01,14.5541]
[1728536561393,0.12502,140.03,140.01,3.5741]
[1728536563205,0.12502,140.03,140.01,3.5742]
[1728536563407,0.12502,140.03,140.0,10.98]
[1728536563597,0.12502,140.03,140.01,10.98]
[1728536563798,0.12502,140.03,140.01,14.554]
[1728536567812,0.12502,140.03,140.01,3.574]
[1728536574010,0.12502,140.03,140.02,3.5739]
[1728536577613,0.12502,140.03,140.0,10.98]
[1728536577817,0.12502,140.03,140.01,3.574]
[1728536581416,3.69882,140.03,140.0,19.4943]
[1728536581817,3.69882,140.03,140.0,14.5543]
[1728536585920,0.12502,140.03,139.99,1.3327]
[1728536586116,3.5743,140.01,139.99,1.3327]
[1728536586319,3.5743,140.01,139.98,3.5748]
[1728536586518,3.5743,140.01,139.98,14.5548]
[1728536586814,3.5743,140.01,139.99,3.5747]
[1728536587018,10.98,140.02,139.99,3.5747]
[1728536587213,3.5741,140.02,139.99,3.5747]
[1728536590135,3.5741,140.02,139.99,14.5547]
[1728536591225,3.5741,140.02,140.0,3.5744]
[1728536591821,10.98,140.02,139.97,1.411]
[1728536593123,3.5746,140.0,139.97,4.9861]
[1728536593324,10.98,140.0,139.97,1.411]
[1728536594027,3.5748,139.99,139.97,1.411]
[1728536594219,14.5548,139.99,139.95,17.3578]
[1728536594419,10.98,139.99,139.95,17.3578]
[1728536594721,3.5751,139.98,139.95,20.9334]
[1728536595123,10.98,139.99,139.95,20.9334]
[1728536595420,14.5547,139.99,139.95,20.9334]
[1728536596222,10.98,139.99,139.95,15.9934]
[1728536596528,3.5749,139.98,139.95,5.0134]
[1728536598027,3.5753,139.97,139.95,1.4378]
[1728536598218,14.56327441,139.97,139.93,1.3848]
[1728536598530,10.98,139.97,139.93,1.3848]
[1728536599428,3.5756,139.96,139.93,4.961]
[1728536602027,3.5758,139.95,139.93,1.3848]
[1728536606535,10.98,139.95,139.91,0.12502]
[1728536606828,10.98,139.95,139.91,3.70162]
[1728536607233,14.5561,139.94,139.91,0.12502]
[1728536608541,14.5561,139.94,139.91,3.70162]
[1728536609135,10.98,139.94,139.91,0.12502]
[1728536609527,10.98,139.93,139.91,0.12502]
[1728536610139,3.5765,139.92,139.91,0.12502]
[1728536612837,14.5563,139.93,139.91,0.12502]
[1728536613446,3.5765,139.92,139.91,0.12502]
[1728536614039,14.5563,139.93,139.91,0.12502]
[1728536615335,3.49285922,139.96,139.91,0.12502]
[1728536615542,78.78257434,139.97,139.92,10.98]
[1728536615844,10.98,139.96,139.91,11.10502]
[1728536616341,14.5555,139.96,139.91,11.10502]
[1728536617434,14.5555,139.96,139.92,3.5763]
[1728536617741,10.98,139.96,139.92,3.5763]
[1728536617937,3.5758,139.95,139.92,3.5763]
[1728536621843,21.47,139.94,139.86,5.83765435]
[1728536622144,21.47,139.86,139.73,0.12502]
[1728536622331,10.98,139.79,139.73,11.10502]
[1728536622533,3.5805,139.77,139.73,11.10502]
[1728536622736,7.19197688,139.77,139.73,11.10502]
[1728536622937,3.5805,139.77,139.73,11.10502]
[1728536623215,14.63975387,139.77,139.73,0.12502]
[1728536623339,6.42,139.8,139.73,0.12502]
[1728536623739,10.98,139.77,139.73,0.12502]
[1728536623940,6.96857067,139.76,139.73,0.12502]
[1728536624136,6.96857067,139.75,139.73,0.12502]
[1728536624340,6.96857067,139.74,139.73,0.12502]
[1728536624938,18.11828375,139.74,139.73,0.12502]
[1728536625232,10.98,139.76,139.73,0.12502]
[1728536625334,7.08439354,139.74,139.73,0.12502]
[1728536625539,18.41942321,139.74,139.73,0.12502]
[1728536625738,7.08439354,139.74,139.73,0.12502]
[1728536627353,7.08439354,139.75,139.73,0.12502]
[1728536627652,18.06439354,139.76,139.73,0.12502]
[1728536628245,10.98,139.76,139.73,0.12502]
[1728536628457,10.98,139.74,139.73,0.12502]
[1728536640751,10.98,139.74,139.72,3.5815]
[1728536640752,3.5813,139.73,139.69,3.5823]
[1728536640958,10.98,139.7,139.67,0.12502]
[1728536641534,10.98,139.7,139.68,3.5824]
[1728536642550,10.98,139.71,139.67,11.10502]
[1728536642753,3.5812,139.74,139.69,10.98]
[1728536643161,10.98,139.73,139.69,10.98]
[1728536643564,10.98,139.73,139.7,3.5819]
[1728536643754,10.98,139.72,139.7,3.5819]
[1728536644358,3.5812,139.74,139.71,3.5818]
[1728536644565,10.98,139.73,139.71,3.5818]
[1728536645364,10.98,139.72,139.7,3.582]
[1728536645757,3.5813,139.74,139.68,17.42]
[1728536645963,10.98,139.72,139.68,17.42]
[1728536646763,10.98,139.72,139.7,3.5819]
[1728536647771,3.5813,139.74,139.7,3.5819]
[1728536648070,10.98,139.72,139.7,3.5819]
[1728536650666,10.98,139.73,139.71,3.5817]
[1728536650872,75.30919932,139.76,139.71,10.98]
[1728536651170,10.98,139.75,139.73,3.5811]
[1728536651669,10.98,139.75,139.71,10.98]
[1728536651973,10.98,139.76,139.74,3.5811]
[1728536652212,10.98,139.76,139.72,17.24]
[1728536652562,3.62348675,139.79,139.72,17.24]
[1728536652769,10.98,139.76,139.72,17.24]
[1728536652969,10.98,139.76,139.72,6.26]
[1728536653174,10.98,139.75,139.73,3.5812]
[1728536654558,10.98,139.75,139.72,6.26]
[1728536654869,10.98,139.75,139.74,3.5811]
[1728536656271,10.98,139.75,139.73,3.5812]
[1728536659773,3.62348675,139.79,139.72,6.26]
[1728536659774,0.12502,139.79,139.72,6.26]
[1728536659976,10.98,139.77,139.74,3.5809]
[1728536660168,10.98,139.77,139.72,18.5874]
[1728536660573,10.98,139.77,139.75,3.5806]
[1728536667269,3.70492,139.79,139.75,3.5807]
[1728536667473,3.70492,139.79,139.72,18.5874]
[1728536667474,10.98,139.77,139.72,18.5874]
[1728536667675,10.98,139.77,139.72,7.6074]
[1728536667870,10.98,139.75,139.73,3.5812]
[1728536668071,10.98,139.75,139.72,7.5874]
[1728536668475,10.98,139.75,139.73,3.5812]
[1728536668948,10.98,139.76,139.73,3.5812]
[1728536672786,14.5604,139.77,139.73,3.5812]
[1728536675379,3.5806,139.76,139.73,3.5812]
[1728536676484,3.5807,139.76,139.73,3.5813]
[1728536676887,10.98,139.77,139.72,7.5874]
[1728536677282,14.5604,139.77,139.74,3.5809]
[1728536677480,3.66584521,139.79,139.72,18.5674]
[1728536677481,0.12502,139.79,139.72,18.5674]
[1728536677776,10.98,139.77,139.72,18.5674]
[1728536678082,14.5604,139.77,139.74,3.5809]
[1728536680485,14.5604,139.77,139.73,6.24]
[1728536680486,10.98,139.77,139.73,6.24]
[1728536680686,10.98,139.77,139.75,3.5808]
[1728536684285,10.98,139.76,139.71,2.6482]
[1728536684601,3.74867191,139.79,139.72,5.92]
[1728536684602,10.98,139.74,139.72,5.92]
[1728536684780,14.5607,139.76,139.72,9.5013]
[1728536685284,10.98,139.74,139.72,5.92]
[1728536685486,14.5611,139.74,139.72,5.92]
[1728536686591,14.5612,139.74,139.72,5.92]
[1728536686786,14.5612,139.74,139.71,2.6482]
[1728536686987,14.5612,139.74,139.71,8.5682]
[1728536687388,14.5612,139.74,139.71,12.15]
[1728536687994,14.5609,139.75,139.71,8.5682]
[1728536689396,14.5609,139.75,139.72,3.5816]
[1728536690592,14.5609,139.75,139.71,12.1499]
[1728536691181,10.98,139.75,139.71,8.5682]
[1728536691485,10.98,139.75,139.72,3.5814]
[1728536695401,14.5608,139.75,139.72,3.5814]
[1728536696299,10.98,139.75,139.71,5.92]
[1728536696492,10.98,139.72,139.68,1.3184]
[1728536696694,10.98,139.72,139.69,5.92]
[1728536697396,10.98,139.72,139.69,9.5022]
[1728536697901,10.98,139.7,139.67,0.12502]
[1728536698090,10.98,139.7,139.67,6.04502]
[1728536698491,10.98,139.7,139.67,3.70772]
[1728536700305,14.5621,139.7,139.67,3.70772]
[1728536702395,14.5621,139.7,139.67,0.12502]
[1728536704815,10.98,139.7,139.67,3.70772]
[1728536705903,14.5621,139.7,139.67,3.70772]
[1728536706298,14.5621,139.7,139.67,0.12502]
[1728536712423,14.5626,139.69,139.67,0.12502]
[1728536713407,10.98,139.69,139.67,0.12502]
[1728536715511,14.5624,139.69,139.67,0.12502]
[1728536717713,3.5826,139.68,139.67,0.12502]
[1728536727235,3.5822,139.7,139.67,0.12502]
[1728536727314,10.98,139.69,139.67,0.12502]
[1728536737312,3.581,139.75,139.71,3.5818]
[1728536737418,10.98,139.73,139.69,10.98]
[1728536737811,10.98,139.72,139.68,10.98]
[1728536738116,3.5814,139.73,139.69,3.5823]
[1728536738320,10.98,139.72,139.69,3.5823]
[1728536738515,10.98,139.72,139.68,10.98]
[1728536738923,3.5813,139.73,139.68,14.5624]
[1728536739122,10.98,139.72,139.68,14.5624]
[1728536740418,14.5616,139.72,139.68,14.5624]
[1728536741519,14.5616,139.72,139.68,3.5824]
[1728536741921,10.98,139.72,139.68,3.5824]
[1728536742122,3.5818,139.71,139.68,3.5824]
[1728536743529,3.5822,139.7,139.67,11.10502]
[1728536743991,10.98,139.71,139.67,0.12502]
[1728536744070,10.98,139.69,139.67,0.12502]
[1728536745222,14.5624,139.69,139.67,0.12502]
[1728536745422,3.5824,139.69,139.67,0.12502]
[1728536746528,10.98,139.7,139.67,0.12502]
[1728536746729,14.5622,139.7,139.67,0.12502]
[1728536746929,14.5622,139.7,139.67,3.70782]
[1728536747929,3.5822,139.7,139.67,3.70782]
[1728536748127,10.98,139.7,139.67,0.12502]
[1728536748536,3.5823,139.69,139.67,0.12502]
[1728536749832,8.97469451,139.72,139.67,11.10502]
[1728536750027,19.95469451,139.72,139.67,11.10502]
[1728536751423,3.5822,139.7,139.67,14.68772]
[1728536752536,3.5822,139.7,139.67,3.70772]
[1728536756849,3.5825,139.69,139.67,0.12502]
[1728536757065,10.98,139.71,139.67,0.12502]
[1728536757536,3.5823,139.7,139.67,0.12502]
[1728536760330,3.5823,139.7,139.67,3.70782]
[1728536762130,3.5823,139.7,139.67,0.12502]
[1728536762332,3.5824,139.69,139.67,0.12502]
[1728536766441,3.5822,139.7,139.67,3.70792]
[1728536768438,3.5822,139.7,139.67,0.12502]
[1728536768737,3.5821,139.7,139.67,0.12502]
[1728536774453,3.5821,139.7,139.67,3.70782]
[1728536777136,14.5621,139.7,139.67,0.12502]
[1728536777548,3.5824,139.69,139.67,0.12502]
[1728536777963,10.98,139.68,139.67,0.12502]
[1728536778449,14.5626,139.68,139.67,0.12502]
[1728536781147,3.5841,139.62,139.61,0.12502]
[1728536781345,19.9241,139.62,139.61,0.12502]
[1728536781743,23.48393922,139.62,139.61,0.12502]
[1728536782347,23.48393922,139.62,139.56,3.71068]
[1728536782348,19.89983922,139.62,139.56,0.12518]
[1728536782544,10.98,139.58,139.56,0.12518]
[1728536784349,10.98,139.59,139.56,0.12518]
[1728536784750,10.98,139.59,139.56,3.71078]
[1728536785652,3.5849,139.6,139.57,3.5854]
[1728536785653,10.98,139.6,139.57,3.5854]
[1728536786247,3.5845,139.61,139.58,3.585]
[1728536786248,5.36,139.61,139.58,3.585]
[1728536788055,10.98,139.62,139.58,3.585]
[1728536788248,19.9241,139.62,139.58,3.585]
[1728536789671,8.9441,139.62,139.58,3.585]
[1728536789987,19.9241,139.62,139.58,3.585]
[1728536791346,10.98,139.62,139.57,13.7003]
[1728536791549,8.9439,139.63,139.59,3.5848]
[1728536791748,19.9239,139.63,139.59,3.5848]
[1728536793458,5.36,139.63,139.6,3.5846]
[1728536793760,10.98,139.62,139.6,3.5846]
[1728536793956,10.98,139.62,139.58,10.98]
[1728536794259,10.98,139.62,139.59,3.5848]
[1728536796554,3.5839,139.63,139.59,3.5848]
[1728536796762,10.98,139.63,139.6,3.5844]
[1728536798752,10.98,139.63,139.61,3.5844]
[1728536799152,10.98,139.64,139.59,10.98]
[1728536799357,0.12502,139.67,139.62,10.98]
[1728536799553,10.98,139.66,139.62,10.98]